Cogmind - Beta 14 @@@ ROGUE MODE // 2024.09.04 @ 19:37:05 Player: AnthonyDPS 2004 Result: Destroyed by Y-45 Defender with Beam Rifle Performance ------------- Evolutions (1) 500 Regions Visited (3) 600 Robots Destroyed (19) 95 Value Destroyed (572) 572 Prototype IDs (0) 0 Alien Tech Used (0) 0 Bonus (-11) -11 TOTAL SCORE: 1756 Bonus ------- Friendly Fire -11 Cogmind --------- Core Integrity 0/400 Matter 30/300 Energy 100/100 System Corruption 0% Temperature Cool (9) Movement Core (150) Ox2 Location -9/Materials Parts ------- > --- POWER (1) -------- (None) > --- PROPULSION (2) --- (None) > --- UTILITY (4) ------ Small Storage Unit Signal Interpreter ECM Suite > --- WEAPON (2) ------- (None) > --- INVENTORY (8) ---- (None) Peak State ------------ > --- POWER ------------ Ion Engine > --- PROPULSION ------- Aluminum Leg Aluminum Leg > --- UTILITY ---------- Small Storage Unit Propulsion Shielding Light Armor Plating Light Armor Plating > --- WEAPON ----------- Assault Rifle Light Assault Rifle > --- INVENTORY -------- Signal Interpreter ECM Suite Light Armor Plating Light Armor Plating [Rating: 9] Favorites ----------- Power Light Ion Engine Engine Light Ion Engine Propulsion Aluminum Leg Treads Light Treads Leg Aluminum Leg Wheel Compact Wheel Utility Light Armor Plating Device ECM Suite Storage Small Storage Unit Processor Signal Interpreter Protection Light Armor Plating Weapon Assault Rifle Ballistic Gun Assault Rifle Launcher Grenade Launcher Build | -11 -10 -10 -9 ------- Run | Yrd Mat Min Mat Slots Evolved 2 | . . . 2 Power . | . . . . Propulsion . | . . . . Utility 2 | . . . 2 Weapon . | . . . . Parts Attached 25 | 4 6 1 14 Power 3 | . 2 1 . Engine 3 | . 2 1 . Core . | . . . . Reactor . | . . . . Propulsion 7 | 2 2 . 3 Treads 2 | 2 . . . Leg 3 | . . . 3 Wheel 2 | . 2 . . Hover . | . . . . Flight . | . . . . Utility 9 | 1 1 . 7 Device 2 | . . . 2 Storage 1 | 1 . . . Processor 1 | . . . 1 Hackware . | . . . . Protection 5 | . 1 . 4 Artifact . | . . . . Weapon 6 | 1 1 . 4 Energy Gun . | . . . . Energy Cannon . | . . . . Ballistic Gun 4 | 1 1 . 2 Ballistic Cannon . | . . . . Launcher 2 | . . . 2 Special Weapon . | . . . . Impact Weapon . | . . . . Slashing Weapon . | . . . . Piercing Weapon . | . . . . Special Melee Weapon . | . . . . Unidentified Prototypes . | . . . . Parts Lost 14 | . . . 14 Power 1 | . . . 1 Propulsion 3 | . . . 3 Utility 6 | . . . 6 Weapon 4 | . . . 4 Highest Loss Streak 14 | . . . 14 To Critical Strikes . | . . . . Average Slot Usage (%) 87 | . 87 100 78 Engine 9 | . 11 14 6 Treads 1 | . 6 . . Leg 8 | . . . 17 Wheel 13 | . 22 28 . Device 1 | . . . 2 Storage 12 | . 14 14 11 Processor 1 | . . . 3 Protection 17 | . 11 14 22 Ballistic Gun 16 | . 22 28 7 Launcher 3 | . . . 7 Peak Build Rating 9 | 4 7 7 9 Average Rating 6 | 3 6 7 7 On Entrance 4 | . 4 7 7 Naked Turns . | . . . . Heaviest Build 23 | 7 14 16 23 Greatest Support 40 | 40 40 26 20 Greatest Overweight (x) 2 | . . . 2 Average Overweight (x) . | . . . . Largest Inventory Capacity 8 | 8 8 8 8 Average Capacity 7 | 7 8 8 8 Most Carried 8 | 8 8 8 8 Average Carried 6 | 5 7 7 4 Final Capacity 8 | 8 8 8 8 Final Carried 8 | 8 8 8 . Class Distribution -------------------- 100% | Mutant Dominant Class ---------------- Mutant | -10/Materials Mutant | -10/Mines Mutant | -9/Materials Resources | -11 -10 -10 -9 ----------- Run | Yrd Mat Min Mat Matter Collected 433 | 240 86 76 31 Remotely . | . . . . Salvage Created 470 | . 30 132 308 Parts 35 | . 1 9 25 Haulers Intercepted . | . . . . Recyclers Shooed . | . . . . Parts Field Recycled . | . . . . Retrieved Matter . | . . . . Parts Self-Destructed . | . . . . Prevented . | . . . . Kills | -11 -10 -10 -9 ------- Run | Yrd Mat Min Mat Combat Hostiles Destroyed 17 | . 1 3 13 Guns 9 | . 1 3 5 AOE 8 | . . . 8 Classes Destroyed 6 | . 1 1 4 Worker 1 | . . . 1 Watcher 1 | . . . 1 Swarmer 4 | . . . 4 Grunt 10 | . 1 2 7 Brawler 1 | . . . 1 Sentry 2 | . . 1 1 Best Kill Streak 6 | . 1 1 6 Combat Bots Only 5 | . 1 1 5 Max Kills in Single Turn 3 | . 1 1 3 Gunslinging . | . . . . Exploded 2 | . . . 2 Melee . | . . . . Uniques/NPCs Destroyed . | . . . . Combat | -11 -10 -10 -9 -------- Run | Yrd Mat Min Mat Hostile Shots Fired 204 | . 12 17 175 Missed 62 | . 3 8 51 Damage Taken 1718 | . 96 132 1490 Core 471 | . 33 25 413 Absorbed by Shields . | . . . . Redirected to Shielding 51 | . . . 51 Core Remaining (%) 88 | 100 . 76 . Volleys Fired 53 | . 9 14 30 Largest 2 | . 2 2 2 Hottest 60 | . 40 40 60 Shots Fired 93 | . 18 28 47 Gun 75 | . 18 28 29 Cannon . | . . . . Launcher 18 | . . . 18 Special . | . . . . Kinetic 75 | . 18 28 29 Thermal . | . . . . Explosive 18 | . . . 18 Electromagnetic . | . . . . Robot Hit Streak 12 | . 6 11 12 Robot Miss Streak 4 | . 1 1 4 Penetration Max . | . . . . Secondary Targets 3 | . . 1 2 Max Gunslinging Chain 1 | . . 1 1 Shots Hit Robots 66 | . 15 23 28 Core Hits 39 | . 2 7 30 Critical Kills . | . . . . Critical Parts Destroyed . | . . . . Critical Strikes 1 | . . . 1 Destroy 1 | . . . 1 Melee Attacks . | . . . . Impact . | . . . . Slashing . | . . . . Piercing . | . . . . Sneak Attacks . | . . . . Combat Hostiles . | . . . . Follow-up Attacks . | . . . . Damage Inflicted 1413 | . 155 273 985 Guns 654 | . 155 273 226 Cannons . | . . . . Explosions 759 | . . . 759 Melee . | . . . . Ramming . | . . . . Kinetic 654 | . 155 273 226 Thermal . | . . . . Explosive 759 | . . . 759 Electromagnetic . | . . . . Impact . | . . . . Slashing . | . . . . Piercing . | . . . . Highest Corruption . | . . . . Average Corruption . | . . . . Corruption Purged . | . . . . Corruption Blocked . | . . . . Overload Shots . | . . . . Overflow Damage 18 | . . . 18 Projectiles . | . . . . Explosions 18 | . . . 18 Melee . | . . . . Knockbacks . | . . . . Impact . | . . . . Kinetic . | . . . . Secondary . | . . . . Self-Inflicted Damage 39 | . . . 39 Shots 2 | . . . 2 Rammed . | . . . . Targets Rammed . | . . . . Kicked . | . . . . Crushed . | . . . . Highest Temperature 33 | . 24 30 33 Average Temperature 12 | . 11 13 13 Received Heat Transfer 747 | . 54 69 624 Siege Activations . | . . . . Robots Corrupted . | . . . . Combat Hostiles . | . . . . Parts Fried . | . . . . Impact Corruptions . | . . . . Robots Melted . | . . . . Combat Hostiles . | . . . . Parts Melted . | . . . . Heat Transferred . | . . . . Parts Sabotaged . | . . . . Parts Stolen . | . . . . Parts Stripped . | . . . . Power Chain Reactions . | . . . . Alert | -11 -10 -10 -9 ------- Run | Yrd Mat Min Mat Peak Influence 344 | . 30 81 344 Initial 31 | . . 11 31 Average 85 | . 10 33 172 Maximum Alert Level 1 | . . . 1 Low Security (%) 76 | 100 100 100 44 Level 1 23 | . . . 55 Level 2 . | . . . . Level 3 . | . . . . Level 4 . | . . . . Level 5 . | . . . . High Security . | . . . . Max Security . | . . . . Squads Dispatched 3 | . 1 . 2 Investigation 1 | . . . 1 Extermination . | . . . . Reinforcement 2 | . 1 . 1 Assault . | . . . . Garrison . | . . . . Intercept . | . . . . Searches Triggered . | . . . . Construction Impeded . | . . . . Haulers Reinforced . | . . . . Active Scanning Responses . | . . . . Cargo Convoy Interrupts . | . . . . Stealth | -11 -10 -10 -9 --------- Run | Yrd Mat Min Mat Distress Signals 2 | . 1 . 1 Communications Jammed . | . . . . Distress Signals . | . . . . Times Spotted 33 | . 1 4 28 Peak Tracking Total 14 | . 3 2 14 Tactical Retreats 2 | . . . 2 Traps | -11 -10 -10 -9 ------- Run | Yrd Mat Min Mat Traps Triggered 1 | . . . 1 Indirectly . | . . . . Trap Hack Attempts . | . . . . Triggered . | . . . . Disarmed . | . . . . Reprogrammed . | . . . . Reused . | . . . . Traps Extracted . | . . . . Installed . | . . . . Triggered . | . . . . Machines | -11 -10 -10 -9 ---------- Run | Yrd Mat Min Mat Machines Disabled 1 | . . . 1 Max in Single Turn 1 | . . . 1 Machines Repaired . | . . . . Machines Dismantled . | . . . . Machines Sabotaged . | . . . . Overloaded Fab Kills . | . . . . Hacking | -11 -10 -10 -9 --------- Run | Yrd Mat Min Mat Machines Accessed 1 | . 1 . . Terminals 1 | . 1 . . Fabricators . | . . . . Repair Stations . | . . . . Recycling Units . | . . . . Scanalyzers . | . . . . Garrison Access . | . . . . Total Hacks 1 | . 1 . . Successful . | . . . . Failed 1 | . 1 . . Catastrophic 1 | . 1 . . Database Lockouts . | . . . . Manual . | . . . . Terminals 1 | . 1 . . Fabricators . | . . . . Repair Stations . | . . . . Recycling Units . | . . . . Scanalyzers . | . . . . Garrison Access . | . . . . Terminal Hacks . | . . . . Fabricator Hacks . | . . . . Repair Station Hacks . | . . . . Recycling Unit Hacks . | . . . . Scanalyzer . | . . . . Garrison Access Hacks . | . . . . Unauthorized Hacks . | . . . . Terminals . | . . . . Fabricators . | . . . . Repair Stations . | . . . . Recycling Units . | . . . . Scanalyzers . | . . . . Garrison Access . | . . . . Data Cores Recovered . | . . . . Used . | . . . . Hacking Detections 1 | . 1 . . Full Trace Events . | . . . . Feedback Events . | . . . . Feedback Blocked . | . . . . Robot Schematics Acquired . | . . . . Robots Built . | . . . . Authchips . | . . . . Time . | . . . . Total Robot Build Rating . | . . . . Part Schematics Acquired . | . . . . Parts Built . | . . . . Authchips . | . . . . Time . | . . . . Total Part Build Rating . | . . . . Parts Repaired . | . . . . Time . | . . . . Parts Recycled . | . . . . Recycled Matter . | . . . . Retrieved Matter . | . . . . Retrieved Components . | . . . . Parts Scanalyzed . | . . . . Part Schematics Acquired . | . . . . Parts Damaged . | . . . . Bothacking | -11 -10 -10 -9 ------------ Run | Yrd Mat Min Mat Used RIF Installer . | . . . . Robots Hacked . | . . . . Non-combat . | . . . . Combat . | . . . . Robot Hacks Applied . | . . . . Relay Couplers Released . | . . . . Fabnet Peak Effective % . | . . . . Robots Rewired . | . . . . Allies Hacked . | . . . . Hacks Repelled . | . . . . Allies | -11 -10 -10 -9 -------- Run | Yrd Mat Min Mat Total Allies . | . . . . Largest Group . | . . . . Highest-Rated Group . | . . . . Highest-Rated Ally . | . . . . Total Orders . | . . . . Ally Attacks . | . . . . Total Damage . | . . . . Kills . | . . . . Allies Corrupted . | . . . . Allies Melted . | . . . . Intel | -11 -10 -10 -9 ------- Run | Yrd Mat Min Mat Robot Analysis Total . | . . . . Derelict Logs Recovered . | . . . . Drone Launches . | . . . . Drone Recoveries . | . . . . Exploration | -11 -10 -10 -9 ------------- Run | Yrd Mat Min Mat Turns Passed 792 | 86 138 226 342 Spaces Moved 515 | 46 87 200 182 Core 10 | 2 . . 8 Treads 61 | 44 17 . . Legs 174 | . . . 174 Wheels 270 | . 70 200 . Hover . | . . . . Flight . | . . . . Fastest Speed 50 | 50 90 90 120 Average Speed 114 | 155 103 90 135 Slowest Speed 190 | 160 160 90 190 Overloaded Moves . | . . . . Propulsion Burnouts . | . . . . Robots Hopped . | . . . . Cave-ins Triggered . | . . . . Exploration Rate (%) 25 | 4 17 54 28 Regions Visited 3 Branch Regions 1 Pre-discovered Areas . | . . . . Known Exits Taken . | . . . . Unknown Exits Taken 3 | 1 1 1 . Scrap Searched . | . . . . Spaces Dug 4 | . . . 4 Terrain Destroyed 77 | . . . 77 Melee . | . . . . Projectile . | . . . . AOE 77 | . . . 77 Terrain Rammed . | . . . . Walls Destroyed . | . . . . Machines Disabled . | . . . . Actions | -11 -10 -10 -9 --------- Run | Yrd Mat Min Mat Total 632 | 59 118 222 233 Wait 13 | 2 7 3 1 Move 512 | 45 86 199 182 Hop . | . . . . Pick Up 20 | 8 6 2 4 Fast Attach 5 | 4 1 . . Attach 14 | . 2 . 12 Detach . | . . . . Swap 6 | . 3 1 2 Drop 9 | . 4 3 2 Fire 53 | . 9 14 30 Melee . | . . . . Ram . | . . . . Kick . | . . . . Crush . | . . . . Escape Stasis . | . . . . Rewire . | . . . . Trap . | . . . . Miscellaneous . | . . . . Route ------- -11/Scrapyard -10/Materials -10/Mines -9/Materials (discovered 2 exits: *Min x2) History --------- Turn | Location | Event 38 | -11/Scrapyard | Discovered new exit (range 15) 87 | -11/Scrapyard | Entered Materials 212 | -10/Materials | Discovered new exit (range 8) 225 | -10/Materials | Entered Mines 250 | -10/Mines | Joined a pair of Derelicts in attacking an 0b10 outpost 324 | -10/Mines | Build established: Mutant 443 | -10/Mines | Discovered new exit (range 10) 451 | -10/Mines | Entered Materials 451 | -9/Materials | Evolved 2 slots: Utility x2 672 | -9/Materials | Discovered new exit (range 15) 693 | -9/Materials | Discovered new exit (range 16) 693 | -9/Materials | Identified exit to Mines 770 | -9/Materials | Core integrity fell below 50% 788 | -9/Materials | Core integrity fell below 20% 793 | -9/Materials | Destroyed by Y-45 Defender with Beam Rifle Last Messages --------------- investigation squad. 00720_ K-01 Serf cleans the Machine. 00722_ Aluminum Leg destroyed. 00722_ K-01 Serf collects debris. 00732_ Aluminum Leg destroyed. 00739_ Acquired Terrain Scanner. 00743_ S-10 Pest destroyed. 00743_ Switching to secondary target: S-10 Pest. 00748_ S-10 Pest destroyed. 00751_ Terrain Scanner destroyed. 00752_ S-10 Pest destroyed. 00752_ Switching to secondary target: S-10 Pest. 00761_ S-10 Pest destroyed. 00769_ G-34 Mercenary destroyed. 00773_ Assault Rifle destroyed. 00778_ Critical hit (Burn: +37). 00778_ Y-45 Defender suffers critical hit (Destroy). 00782_ Acquired 15 matter. 00790_ Lgt. Assault Rifle destroyed. Map ----- +----------------------------------------------------+ | ??????????? ????????????????????????????? | | #####????????????? #??????????????????????????? | | ?????????????????? #??????????????????????????? | | ?????????????????# #??????????????????????????? | | ?????????????????# #??????????????????????????? | | ?????????????????# ##?????????????????????????? | | ?#######?????????# ###+#####?????????????????? | | ?? #?????????# ??????????????????? | | #?""" #?????????# ??????????????????? | | +??R" #?????????# ?? ??????????????? | | #?? " #?????????# """ """ #??????????????? | | ???? ??????????# """ """ #??????????????? | | ???? #########?# """ """ #??????????????? | | #####+## ### #??????????????? | | #??????????????? | | > #??????????????? | | #??????????????? | | #####+## ##### #??????????????? | | ???? # "|"!" #???# % "" #??????????????? | | ???? #""|"!""#???# Y" #??????????????? | | ????"" #########???# "" ???????????? | | ????"" #???????????# ???????????? | | ????"" #???????????# ??????????? | | ???? #???????#??####r###### ???????????? | | ??????##??????????# %g ==/#??#+#### ???????????? | | ??????????????????# *%Y=@/#?????????????????????? | | ??????????????????# [=*[ #?????????????????????? | | ??????????????????# #?????????????????????? | | ??????????????????# #?????????????????????? | | ??????????????????#""" #?????? ??????????????? | | ??????????????????#""" #?????????????????????? | | ??????????????????#""" #????????? ???????????? | | ??????????????????# #?????????????????????? | | ???????????????????#########?????????????????????? | | ?????????????????????????????????????????????????? | | ?????????????????????????????????????????????????? | | ?????????????????????????????????????????????????? | | ?????????????????????????????????????????????????? | | ?????????????????????????????????????????????????? | | ?????????????????????????????????????????????????? | | ?????????????????????????????????????????????????? | | ?????????????????????????????????????????????????? | | ?????????????????????????????????????????????????? | | ?????????????????????????????????????????????????? | | ?????????????????????????????????????????????????? | | ?????????????????????????????????????????????????? | | ?????????????????????????????????????????????????? | | ?????????????????????????????????????????????????? | | ?????????????????????????????????????????????????? | | ?????????????????????????????????????????????????? | +----------------------------------------------------+ Best States ------------- Heat Dissipation 28 Energy Generation 10 Energy Capacity 250 Matter Stores 300 Matter Capacity 300 Sight Range 16 Terrain Scan Density 10 ECM Strength 1 Armor Coverage 300 Propulsion Shielding 33 Evasion (%) 55 Recoil Reduction 2 Item Schematics ----------------- None Robot Schematics ------------------ None Fabricated ------------ Nothing Alien Tech Used ----------------- None Achievements -------------- None Challenges ------------ None Game ------ Seed ComponentInertialScrap Manual? 0 Play Time 00:10:44 Cumulative 37.4 hours Start 2024.09.04 @ 19:29:56 End 2024.09.04 @ 19:37:05 Sessions 1 Manual Loads 0 Difficulty Rogue Special Mode None Game No. 73 Rogue 73 Adventurer 0 Explorer 0 Win Type - Total 0 Types 0/0/0/0/0/0/0/0/0 Lore% 15 Gallery% 31 Achievement% 28 Wizard Run 0 Options --------- Layout 1 ASCII 0 Keyboard 0 Movement Numpad Keybinds 0 Fullscreen 2 Font 24/Smallcaps Map View 50x35 Zoom Use 0% Tactical HUD 1 Map Filters NONE Filters NONE Steam 1 RUN: 77c751c6-5ed3-4aa5-872f-2d904c50c042